fUST/lending_fUST_20250515
["ID","MTS","AMOUNT","RATE_DAILY","PERIOD"]
[361146286,1747305046910,-1045.62,0.0001777,2]
[361146289,1747305046920,-625.13,0.0001777,2]
[361146290,1747305046929,-6053.39,0.0001777,2]
[361146293,1747305046940,-450.0,0.0001777,2]
[361146295,1747305046949,-2045.34,0.0001777,2]
[361146297,1747305046960,-3707.59,0.0001777,2]
[361146299,1747305046970,-808.11,0.0001777,2]
[361146301,1747305046979,-502.65,0.0001777,2]
[361146303,1747305046988,-450.0,0.0001777,2]
[361146305,1747305046998,-1402.78,0.0001777,2]
[361146307,1747305047008,-450.0,0.0001777,2]
[361146309,1747305047018,-510.15,0.0001777,2]
[361146311,1747305047030,-763.69,0.0001777,2]
[361146313,1747305047040,-450.0,0.0001777,2]
[361146315,1747305047049,-624.01,0.0001777,2]
[361146317,1747305047059,-450.0,0.0001777,2]
[361146319,1747305047069,-450.0,0.0001777,2]
[361146321,1747305047077,-563.54,0.0001777,2]
[361146323,1747305047087,-607.47,0.0001777,2]
[361146325,1747305047096,-677.77,0.0001777,2]
[361146327,1747305047105,-450.0,0.0001777,2]
[361146329,1747305047115,-392.960606,0.00017771,2]
[361146331,1747305047128,-450.0,0.00017771,2]
[361146333,1747305047138,-450.0,0.00017771,2]
[361146335,1747305047147,-450.0,0.00017771,2]
[361146337,1747305047158,-450.0,0.00017771,2]
[361146339,1747305047167,-178.17800295,0.00017771,2]
[361146341,1747305047177,-450.0,0.00017771,2]
[361146343,1747305047187,-370.54,0.00017771,2]
[361146345,1747305047197,-389.34,0.00017771,2]
[361146347,1747305047207,-450.0,0.00017771,2]
[361146349,1747305047217,-450.0,0.00017771,2]
[361146351,1747305047226,-275.24300392,0.00017771,2]
[361146353,1747305047236,-450.0,0.00017771,2]
[361146355,1747305047245,-151.0,0.00017771,2]
[361146357,1747305047254,-452.58,0.00017771,2]
[361146359,1747305047263,-450.0,0.00017771,2]
[361146361,1747305047275,-450.0,0.00017771,2]
[361146363,1747305047284,-450.0,0.00017771,2]
[361146365,1747305047294,-490.21,0.00017771,2]
[361146367,1747305047303,-2994.42,0.00017771,2]
[361146370,1747305047314,-785.61,0.00017771,2]
[361146372,1747305047323,-450.0,0.00017771,2]
[361146374,1747305047341,-450.0,0.00017771,2]
[361146376,1747305047352,-450.0,0.00017771,2]
[361146379,1747305047362,-450.0,0.00017771,2]
[361146381,1747305047373,-1012.36,0.00017771,2]
[361146383,1747305047382,-1404.96,0.00017771,2]
[361146385,1747305047392,-450.0,0.00017771,2]
[361146387,1747305047402,-450.0,0.00017771,2]
[361146389,1747305047413,-450.0,0.00017771,2]
[361146391,1747305047422,-450.0,0.00017771,2]
[361146393,1747305047432,-450.0,0.00017772,2]
[361146395,1747305047442,-450.0,0.00017772,2]
[361146397,1747305047452,-450.0,0.00017772,2]
[361146399,1747305047462,-151.0,0.00017772,2]
[361146401,1747305047472,-151.0,0.00017772,2]
[361146403,1747305047482,-151.0,0.00017772,2]
[361146405,1747305047491,-247.458967,0.00017772,2]
[361146407,1747305047501,-206.12975625,0.00017772,2]
[361146409,1747305047511,-450.0,0.00017772,2]
[361146411,1747305047520,-1716.38,0.00017772,2]
[361146413,1747305047530,-450.0,0.00017772,2]
[361146415,1747305047539,-450.0,0.00017772,2]
[361146417,1747305047549,-777.55,0.00017772,2]
[361146419,1747305047560,-450.0,0.00017772,2]
[361146421,1747305047571,-450.0,0.00017772,2]
[361146423,1747305047581,-151.0,0.00017773,2]
[361146425,1747305047590,-151.0,0.00017773,2]
[361146428,1747305047601,-151.0,0.00017773,2]
[361146429,1747305047611,-151.0,0.00017773,2]
[361146432,1747305047621,-394.75377,0.00017773,2]
[361146433,1747305047631,-394.75377,0.00017773,2]
[361146436,1747305047641,-151.0,0.00017773,2]
[361146438,1747305047651,-180.068075,0.00017773,2]
[361146440,1747305047661,-180.068075,0.00017773,2]
[361146442,1747305047671,-290.943191,0.00017773,2]
[361146444,1747305047681,-450.0,0.00017773,2]
[361146446,1747305047690,-193.175843,0.00017773,2]
[361146448,1747305047700,-450.0,0.00017773,2]
[361146450,1747305047710,-193.175843,0.00017773,2]
[361146452,1747305047721,-450.0,0.00017773,2]
[361146454,1747305047731,-537.131796,0.00017773,2]
[361146456,1747305047740,-537.131796,0.00017773,2]
[361146458,1747305047750,-450.0,0.00017773,2]
[361146460,1747305047759,-450.0,0.00017773,2]
[361146462,1747305047770,-499.111187,0.00017773,2]
[361146464,1747305047780,-499.111187,0.00017773,2]
[361146467,1747305047791,-151.0,0.00017808,2]
[361146469,1747305047800,-181.469785,0.00017808,2]
[361146471,1747305047810,-181.469785,0.00017808,2]
[361146473,1747305047820,-216.507891,0.00017808,2]
[361146475,1747305047830,-216.507891,0.00017808,2]
[361146477,1747305047840,-151.0,0.00017808,2]
[361146479,1747305047850,-212.000895,0.00017808,2]
[361146481,1747305047860,-212.000895,0.00017808,2]
[361146483,1747305047871,-151.0,0.00017808,2]
[361146485,1747305047880,-374.981032,0.00017808,2]
[361146487,1747305047890,-374.981032,0.00017808,2]
[361146489,1747305047899,-706.461391,0.00017851,2]
[361146491,1747305047910,-706.461391,0.00017851,2]
[361146493,1747305047920,-151.0,0.00017852,2]
[361146495,1747305047929,-151.0,0.00017853,2]
[361146497,1747305047939,-151.0,0.00017853,2]
[361146499,1747305047949,-151.0,0.00017853,2]
[361146501,1747305047958,-265.246109,0.00017853,2]
[361146503,1747305047968,-265.246109,0.00017853,2]
[361146505,1747305047977,-380.928195,0.00017853,2]
[361146507,1747305047987,-380.928195,0.00017853,2]
[361146509,1747305047997,-151.0,0.00017853,2]
[361146511,1747305048006,-3473.457708,0.00017853,2]
[361146513,1747305048016,-3473.457708,0.00017853,2]
[361146515,1747305048027,-772.146222,0.00017853,2]
[361146517,1747305048037,-772.146222,0.00017853,2]
[361146519,1747305048047,-319.134311,0.00017853,2]
[361146521,1747305048057,-319.134311,0.00017853,2]
[361146523,1747305048067,-251.048624,0.00017854,2]
[361146525,1747305048077,-251.048624,0.00017854,2]
[361146527,1747305048087,-151.0,0.00017854,2]
[361146529,1747305048097,-151.0,0.00017854,2]
[361146531,1747305048106,-151.0,0.00017854,2]
[361146533,1747305048116,-394.75377,0.00017854,2]
[361146535,1747305048130,-394.75377,0.00017854,2]
[361146537,1747305048140,-180.068075,0.00017854,2]
[361146539,1747305048150,-180.068075,0.00017854,2]
[361146541,1747305048160,-151.0,0.00017854,2]
[361146544,1747305048171,-151.0,0.00017854,2]
[361146545,1747305048181,-151.0,0.00017854,2]
[361146548,1747305048191,-151.0,0.00017854,2]
[361146550,1747305048202,-151.0,0.00017854,2]
[361146552,1747305048211,-178.367366,0.00017854,2]
[361146553,1747305048221,-178.367366,0.00017854,2]
[361146556,1747305048231,-5790.859572,0.00017854,2]
[361146558,1747305048241,-5790.859572,0.00017854,2]
[361146560,1747305048250,-180.066361,0.00017854,2]
[361146562,1747305048260,-151.0,0.00017854,2]
[361146564,1747305048269,-180.066361,0.00017854,2]
[361146566,1747305048281,-271.349903,0.00017854,2]
[361146568,1747305048290,-151.0,0.00017854,2]
[361146570,1747305048299,-271.349903,0.00017854,2]
[361146572,1747305048309,-153.305625,0.00017854,2]
[361146574,1747305048319,-153.305625,0.00017854,2]
[361146576,1747305048328,-6518.32232913,0.00017871,2]
[361146578,1747305048337,-1000.0,0.0001788,2]
[361146580,1747305048346,-600.9397271,0.00017881,2]
[361146582,1747305048355,-272.2,0.000179,2]
[361146584,1747305048365,-151.0,0.000179,2]
[361146586,1747305048374,-151.0,0.000179,2]
[361146588,1747305048384,-181.469785,0.000179,2]
[361146590,1747305048393,-181.469785,0.000179,2]
[361146592,1747305048402,-216.507891,0.000179,2]
[361146594,1747305048412,-216.507891,0.000179,2]
[361146596,1747305048422,-151.0,0.000179,2]
[361146598,1747305048432,-151.0,0.000179,2]
[361146600,1747305048442,-2784.98534922,0.000179,2]
[361146602,1747305048451,-467.53,0.00017906,2]
[361146604,1747305048461,-837.6,0.00017906,2]
[361146606,1747305048471,-1975.37,0.00017906,2]
[361146608,1747305048480,-646.74,0.00017906,2]
[361146610,1747305048490,-450.0,0.00017906,2]
[361146625,1747305048623,-2596.7,0.00017906,2]
[361146626,1747305048633,-450.0,0.00017906,2]
[361146627,1747305048642,-341.70974767,0.00017907,2]
[361146628,1747305048766,-108.29025233,0.00017907,2]
[361146629,1747305048776,-197.36038747,0.00017907,2]
[361146662,1747305049399,-450.0,0.00016809,2]
[361146663,1747305049408,-147.95323649,0.0001681,2]
[361146664,1747305049424,-416.13676351,0.0001681,2]
[361146665,1747305049434,-564.09,0.00016947,2]
[361146666,1747305049445,-564.09,0.00017084,2]
[361146667,1747305049455,-564.09,0.00017221,2]
[361146668,1747305049466,-564.09,0.00017358,2]
[361146669,1747305049476,-564.09,0.00017495,2]
[361146670,1747305049486,-564.09,0.00017632,2]
[361146671,1747305049496,-564.09,0.00017769,2]
[361146672,1747305049506,-564.09,0.00017906,2]
[361146673,1747305049515,-252.63961253,0.00017907,2]
[361146674,1747305049525,-6053.39,0.00017907,2]
[361146675,1747305049536,-450.0,0.00017907,2]
[361146677,1747305049546,-2045.34,0.00017907,2]
[361146679,1747305049556,-3707.59,0.00017907,2]
[361146681,1747305049565,-151.0,0.00017907,2]
[361146683,1747305049575,-808.11,0.00017907,2]
[361146685,1747305049585,-502.65,0.00017907,2]
[361146687,1747305049594,-450.0,0.00017907,2]
[361146689,1747305049603,-1402.78,0.00017907,2]
[361146691,1747305049613,-450.0,0.00017907,2]
[361146693,1747305049622,-510.15,0.00017907,2]
[361146695,1747305049632,-763.69,0.00017907,2]
[361146697,1747305049643,-450.0,0.00017907,2]
[361146699,1747305049652,-624.01,0.00017907,2]
[361146701,1747305049662,-450.0,0.00017907,2]
[361146703,1747305049672,-452.34152399,0.00017907,2]
[361146705,1747305049681,-563.54,0.00017907,2]
[361146706,1747305049690,-607.47,0.00017907,2]
[361146709,1747305049701,-677.77,0.00017907,2]
[361146711,1747305049711,-450.0,0.00017907,2]
[361146713,1747305049720,-450.0,0.00017908,2]
[361146715,1747305049729,-450.0,0.00017908,2]
[361146717,1747305049738,-450.0,0.00017908,2]
[361146719,1747305049747,-450.0,0.00017908,2]
[361146721,1747305049756,-450.0,0.00017908,2]
[361146723,1747305049766,-450.0,0.00017908,2]
[361146725,1747305049776,-450.0,0.00017908,2]
[361146727,1747305049786,-452.58,0.00017908,2]
[361146729,1747305049796,-450.0,0.00017908,2]
[361146731,1747305049805,-21.54664743,0.00017908,2]
[361146749,1747305049965,-125.71163905,0.00017908,2]
[361146763,1747305050091,-302.74171352,0.00017908,2]
[361146765,1747305050101,-450.0,0.00017908,2]
[361146767,1747305050110,-143.2486422,0.00017908,2]
[361146769,1747305050126,-346.9613578,0.00017908,2]
[361146771,1747305050136,-2994.42,0.00017908,2]
[361146773,1747305050146,-785.61,0.00017908,2]
[361146775,1747305050156,-450.0,0.00017908,2]
[361146777,1747305050166,-450.0,0.00017908,2]
[361146779,1747305050175,-450.0,0.00017908,2]
[361146781,1747305050185,-450.0,0.00017908,2]
[361146784,1747305050195,-1012.36,0.00017908,2]
[361146786,1747305050206,-1404.96,0.00017908,2]
[361146788,1747305050216,-450.0,0.00017908,2]
[361146790,1747305050226,-450.0,0.00017908,2]
[361146792,1747305050236,-450.0,0.00017908,2]
[361146794,1747305050246,-450.0,0.00017908,2]
[361146796,1747305050256,-389.66,0.00017909,2]
[361146798,1747305050265,-450.0,0.00017909,2]
[361146800,1747305050275,-193.175843,0.00017909,2]
[361146802,1747305050285,-193.175843,0.00017909,2]
[361146804,1747305050295,-537.131796,0.00017909,2]
[361146806,1747305050305,-537.131796,0.00017909,2]
[361146808,1747305050314,-499.111187,0.00017909,2]
[361146810,1747305050324,-499.111187,0.00017909,2]
[361146812,1747305050333,-180.07703193,0.00017909,2]
[361146814,1747305050343,-1716.38,0.00017909,2]
[361146816,1747305050352,-450.0,0.00017909,2]
[361146818,1747305050362,-450.0,0.00017909,2]
[361146820,1747305050372,-777.55,0.00017909,2]
[361146822,1747305050381,-450.0,0.00017909,2]
[361146824,1747305050390,-151.0,0.0001791,2]
[361146826,1747305050399,-151.0,0.0001791,2]
[361146828,1747305050409,-212.000895,0.0001791,2]
[361146830,1747305050418,-212.000895,0.0001791,2]
[361146832,1747305050427,-151.0,0.0001791,2]
[361146834,1747305050436,-450.0,0.0001791,2]
[361146836,1747305050445,-497.10116467,0.0001791,2]
[361146838,1747305050455,-450.0,0.0001791,2]
[361146840,1747305050466,-450.0,0.0001791,2]
[361146842,1747305050476,-245.28,0.0001791,2]
[361146844,1747305050485,-374.981032,0.0001791,2]
[361146846,1747305050495,-374.981032,0.0001791,2]
[361146848,1747305050504,-319.134311,0.0001791,2]
[361146850,1747305050514,-319.134311,0.0001791,2]
[361146852,1747305050524,-500.0,0.00017911,2]
[361146854,1747305050535,-2784.98534907,0.00017934,2]
[361146856,1747305050545,-153.0,0.00017945,3]
[361146858,1747305050555,-197.26710757,0.00017969,2]
[361147628,1747305063382,2508.2,0.00015,2]
[361147629,1747305073571,3000.0,0.00015,2]
[361147637,1747305931154,-5000.0,0.00016473,2]
[361147638,1747305931175,-1667.93475978,0.00016805,2]
[361147669,1747306232443,-5000.0,0.00016637,2]
[361147671,1747306232455,-1200.0,0.00016637,2]
[361147673,1747306232465,-4444.24,0.00016638,3]
[361147675,1747306232475,-13042.85451735,0.00016805,2]
[361147677,1747306232488,-14859.43501538,0.00016805,2]
[361147678,1747306232550,-10405.39970411,0.00016805,2]
[361147680,1747306232561,-2462.9131946,0.00016805,2]
[361147749,1747306238380,-27153.81654578,0.00016805,2]
[361147751,1747306238390,-300.0,0.00016805,2]
[361147753,1747306238399,-400.0,0.00016806,2]
[361147755,1747306238408,-528.84,0.00016806,2]
[361147757,1747306238418,-400.0,0.00016806,2]
[361147759,1747306238428,-484.8,0.00016806,2]
[361147761,1747306238438,-450.0,0.00016806,2]
[361147763,1747306238448,-590.6,0.00016806,2]
[361147765,1747306238461,-1424.85,0.00016806,2]
[361147767,1747306238470,-404.5,0.00016806,2]
[361147769,1747306238479,-400.0,0.00016806,2]
[361147771,1747306238488,-400.0,0.00016806,2]
[361147774,1747306238497,-450.0,0.00016806,2]
[361147776,1747306238506,-400.0,0.00016806,2]
[361147778,1747306238515,-549.16,0.00016806,2]
[361147780,1747306238525,-450.0,0.00016806,2]
[361147781,1747306238537,-400.0,0.00016806,2]
[361147782,1747306238547,-1622.94,0.00016806,2]
[361147783,1747306238557,-4014.27,0.00016806,2]
[361147784,1747306238566,-450.0,0.00016806,2]
[361147785,1747306238575,-823.97,0.00016806,2]
[361147786,1747306238584,-450.0,0.00016806,2]
[361147787,1747306238594,-500.0,0.00016806,2]
[361147788,1747306238603,-500.0,0.00016806,2]
[361147789,1747306238612,-500.0,0.00016806,2]
[361147790,1747306238621,-500.0,0.00016806,2]
[361147791,1747306238630,-211.61686227,0.00016806,2]
[361147792,1747306238646,-396.39019523,0.00016806,2]
[361147793,1747306238655,-286.27482896,0.00016806,2]
[361147794,1747306238664,-500.0,0.00016806,2]
[361147795,1747306238675,-633.74695956,0.00016806,2]
[361147796,1747306238684,-400.0,0.00016807,2]
[361147797,1747306238693,-400.0,0.00016807,2]
[361147798,1747306238702,-450.0,0.00016807,2]
[361147799,1747306238711,-400.0,0.00016807,2]
[361147800,1747306238720,-450.0,0.00016807,2]
[361147801,1747306238729,-37.70138377,0.00016807,2]
[361147802,1747306238741,-412.29861623,0.00016807,2]
[361147803,1747306238750,-186.11175305,0.00016807,2]
[361147804,1747306238761,-213.88824695,0.00016807,2]
[361147805,1747306238771,-450.0,0.00016807,2]
[361147806,1747306238781,-323.22753536,0.00016807,2]
[361147816,1747306238883,-126.77246464,0.00016807,2]
[361147819,1747306238893,-450.0,0.00016807,2]
[361147821,1747306238903,-450.0,0.00016807,2]
[361147823,1747306238912,-400.0,0.00016807,2]
[361147825,1747306238921,-400.0,0.00016807,2]
[361147826,1747306238930,-407.86,0.00016807,2]
[361147828,1747306238940,-450.0,0.00016807,2]
[361147830,1747306238949,-400.0,0.00016807,2]
[361147832,1747306238958,-913.08,0.00016807,2]
[361147834,1747306238967,-450.0,0.00016807,2]
[361147836,1747306238977,-497.84,0.00016807,2]
[361147838,1747306238986,-450.0,0.00016807,2]
[361147840,1747306238996,-1592.05,0.00016807,2]
[361147842,1747306239006,-400.0,0.00016807,2]
[361147845,1747306239016,-400.0,0.00016807,2]
[361147847,1747306239025,-2873.36,0.00016807,2]
[361147849,1747306239037,-450.0,0.00016807,2]
[361147851,1747306239046,-450.0,0.00016807,2]
[361147853,1747306239056,-400.0,0.00016807,2]
[361147854,1747306239065,-450.0,0.00016807,2]
[361147856,1747306239075,-613.54,0.00016807,2]
[361147859,1747306239085,-450.0,0.00016807,2]
[361147861,1747306239094,-400.0,0.00016807,2]
[361147863,1747306239104,-450.0,0.00016807,2]
[361147865,1747306239114,-450.0,0.00016807,2]
[361147867,1747306239123,-452.52,0.00016807,2]
[361147869,1747306239133,-1130.32,0.00016807,2]
[361147871,1747306239142,-676.77,0.00016807,2]
[361147873,1747306239152,-450.0,0.00016807,2]
[361147875,1747306239161,-420.44,0.00016807,2]
[361147877,1747306239171,-450.13,0.00016807,2]
[361147879,1747306239180,-400.0,0.00016807,2]
[361147881,1747306239188,-400.0,0.00016807,2]
[361147883,1747306239198,-450.0,0.00016807,2]
[361147885,1747306239207,-450.0,0.00016807,2]
[361147887,1747306239217,-515.3,0.00016807,2]
[361147889,1747306239227,-450.0,0.00016807,2]
[361147891,1747306239236,-450.0,0.00016807,2]
[361147893,1747306239245,-400.0,0.00016807,2]
[361147895,1747306239254,-450.0,0.00016807,2]
[361147897,1747306239265,-450.0,0.00016807,2]
[361147899,1747306239274,-450.0,0.00016807,2]
[361147901,1747306239284,-400.0,0.00016808,2]
[361147902,1747306239293,-400.0,0.00016808,2]
[361147903,1747306239303,-400.0,0.00016808,2]
[361147905,1747306239312,-450.0,0.00016808,2]
[361147907,1747306239321,-450.0,0.00016808,2]
[361147909,1747306239331,-450.0,0.00016808,2]
[361147930,1747306239548,-450.0,0.00016808,2]
[361147933,1747306239558,-400.0,0.00016808,2]
[361147935,1747306239568,-450.0,0.00016808,2]
[361147937,1747306239578,-450.0,0.00016808,2]
[361147939,1747306239587,-450.0,0.00016808,2]
[361147941,1747306239598,-450.0,0.00016808,2]
[361147943,1747306239607,-339.90149167,0.00016808,2]
[361147945,1747306239617,-469.13262925,0.00016808,2]
[361147947,1747306239626,-450.0,0.00016808,2]
[361147949,1747306239635,-450.0,0.00016808,2]
[361147951,1747306239644,-450.0,0.00016808,2]
[361147953,1747306239654,-450.0,0.00016808,2]
[361147955,1747306239664,-1871.51,0.00016808,2]
[361147957,1747306239673,-450.0,0.00016808,2]
[361147959,1747306239682,-450.0,0.00016808,2]
[361147961,1747306239691,-491.0,0.00016808,2]
[361147963,1747306239701,-1072.73,0.00016808,2]
[361147965,1747306239710,-450.0,0.00016808,2]
[361147967,1747306239719,-450.0,0.00016808,2]
[361147969,1747306239729,-450.0,0.00016808,2]
[361147971,1747306239739,-485.97,0.00016808,2]
[361147973,1747306239749,-450.0,0.00016808,2]
[361147975,1747306239758,-450.0,0.00016808,2]
[361147976,1747306239768,-632.72,0.00016808,2]
[361147978,1747306239778,-878.1,0.00016808,2]
[361147980,1747306239789,-450.0,0.00016808,2]
[361147982,1747306239798,-450.0,0.00016808,2]
[361147986,1747306239808,-450.0,0.00016808,2]
[361147988,1747306239818,-450.0,0.00016808,2]
[361147989,1747306239827,-400.0,0.00016809,2]
[361147991,1747306239837,-400.0,0.00016809,2]
[361147994,1747306239846,-450.0,0.0001681,2]
[361147995,1747306239855,-450.0,0.0001681,2]
[361147997,1747306239864,-450.0,0.0001681,2]
[361147999,1747306239873,-328.16967998,0.0001681,2]
[361148001,1747306239882,-500.0,0.0001681,2]
[361148003,1747306239892,-484.8,0.00016943,2]
[361148013,1747306240033,-450.0,0.00016943,2]
[361148014,1747306240052,-149.95521175,0.00016943,2]
[361148047,1747306240648,-450.0,0.00016807,2]
[361148049,1747306240658,-440.64478825,0.00016943,2]
[361148051,1747306240668,-1424.85,0.00016943,2]
[361148053,1747306240678,-450.0,0.00016943,2]
[361148055,1747306240687,-450.0,0.00016943,2]
[361148056,1747306240698,-1622.94,0.00016943,2]
[361148058,1747306240708,-472.08556318,0.00016943,2]
[361148060,1747306240723,-3542.18443682,0.00016943,2]
[361148062,1747306240732,-450.0,0.00016943,2]
[361148064,1747306240741,-823.97,0.00016943,2]
[361148065,1747306240752,-350.0,0.00016943,2]
[361148067,1747306240761,-243.33,0.00016944,2]
[361148069,1747306240770,-185.91,0.00016944,2]
[361148070,1747306240781,-450.0,0.00016944,2]
[361148072,1747306240790,-450.0,0.00016944,2]
[361148074,1747306240799,-450.0,0.00016944,2]
[361148075,1747306240808,-450.0,0.00016944,2]
[361148077,1747306240818,-387.75427212,0.00016944,2]
[361148079,1747306240827,-454.73432755,0.00016944,2]
[361148081,1747306240837,-913.08,0.00016944,2]
[361148082,1747306240845,-450.0,0.00016944,2]
[361148084,1747306240855,-450.0,0.00016944,2]
[361148086,1747306240864,-1592.05,0.00016944,2]
[361148088,1747306240873,-2873.36,0.00016944,2]
[361148089,1747306240883,-450.0,0.00016944,2]
[361148091,1747306240892,-219.23,0.00016944,2]
[361148093,1747306240901,-171.76,0.00016944,2]
[361148094,1747306240910,-613.54,0.00016944,2]
[361148096,1747306240920,-450.0,0.00016944,2]
[361148098,1747306240930,-450.0,0.00016944,2]
[361148100,1747306240939,-450.0,0.00016944,2]
[361148101,1747306240948,-452.52,0.00016944,2]
[361148103,1747306240957,-1130.32,0.00016944,2]
[361148105,1747306240966,-676.77,0.00016944,2]
[361148107,1747306240976,-190.71,0.00016944,2]
[361148109,1747306240986,-450.0,0.00016944,2]
[361148110,1747306240995,-450.0,0.00016944,2]
[361148112,1747306241004,-515.3,0.00016944,2]
[361148114,1747306241014,-450.0,0.00016944,2]
[361148116,1747306241023,-450.0,0.00016944,2]
[361148118,1747306241034,-450.0,0.00016944,2]
[361148119,1747306241043,-450.0,0.00016944,2]
[361148121,1747306241052,-450.0,0.00016944,2]
[361148123,1747306241061,-535.06,0.00016945,2]
[361148124,1747306241070,-377.97,0.00016945,2]
[361148126,1747306241080,-557.81,0.00016945,2]
[361148128,1747306241089,-450.0,0.00016945,2]
[361148130,1747306241098,-176.52,0.00016945,2]
[361148131,1747306241107,-342.71,0.00016945,2]
[361148133,1747306241117,-450.0,0.00016945,2]
[361148135,1747306241128,-335.50277007,0.00016945,2]
[361148137,1747306241137,-450.0,0.00016945,2]
[361148138,1747306241147,-450.0,0.00016945,2]
[361148140,1747306241156,-450.0,0.00016945,2]
[361148142,1747306241166,-357.26,0.00016945,2]
[361148144,1747306241176,-1871.51,0.00016945,2]
[361148145,1747306241185,-450.0,0.00016945,2]
[361148147,1747306241195,-450.0,0.00016945,2]
[361148149,1747306241204,-491.0,0.00016945,2]
[361148151,1747306241213,-1072.73,0.00016945,2]
[361148152,1747306241222,-450.0,0.00016945,2]
[361148154,1747306241231,-450.0,0.00016945,2]
[361148155,1747306241240,-566.08,0.00016945,2]
[361148157,1747306241249,-485.97,0.00016945,2]
[361148159,1747306241258,-417.77395719,0.00016945,2]
[361148161,1747306241268,-450.0,0.00016945,2]
[361148163,1747306241277,-632.72,0.00016945,2]
[361148164,1747306241288,-878.1,0.00016945,2]
[361148166,1747306241297,-450.0,0.00016945,2]
[361148168,1747306241307,-450.0,0.00016945,2]
[361148170,1747306241316,-450.0,0.00016945,2]
[361148172,1747306241326,-450.0,0.00016945,2]
[361148173,1747306241335,-450.0,0.00016947,2]
[361148175,1747306241344,-485.30522416,0.00016947,2]
[361148177,1747306241354,-450.0,0.00016947,2]
[361148179,1747306241363,-490.0,0.00016964,2]
[361148181,1747306241372,-225.7605176,0.00016964,2]
[361148183,1747306241382,-500.0,0.0001708,2]
[361148185,1747306241391,-495.9777423,0.0001708,2]
[361148186,1747306241401,-500.0,0.0001708,2]
[361148188,1747306241410,-500.0,0.0001708,2]
[361148190,1747306241419,-500.0,0.0001708,2]
[361148192,1747306241429,-500.0,0.0001708,2]
[361148194,1747306241438,-500.0,0.0001708,2]
[361148195,1747306241448,-500.0,0.0001708,2]
[361148197,1747306241458,-349.211026,0.0001708,2]
[361148199,1747306241469,-500.0,0.0001708,2]
[361148201,1747306241478,-484.8,0.0001708,2]
[361148203,1747306241488,-450.0,0.0001708,2]
[361148205,1747306241497,-590.6,0.0001708,2]
[361148207,1747306241508,-1424.85,0.0001708,2]
[361148208,1747306241517,-450.0,0.0001708,2]
[361148210,1747306241526,-450.0,0.0001708,2]
[361148212,1747306241537,-1622.94,0.0001708,2]
[361148213,1747306241547,-4014.27,0.0001708,2]
[361148215,1747306241556,-450.0,0.0001708,2]
[361148217,1747306241566,-823.97,0.0001708,2]
[361148219,1747306241575,-292.35,0.00017081,2]
[361148221,1747306241585,-450.0,0.00017081,2]
[361148223,1747306241595,-320.02,0.00017081,2]
[361148224,1747306241604,-450.0,0.00017081,2]
[361148226,1747306241614,-913.08,0.00017081,2]
[361148228,1747306241623,-450.0,0.00017081,2]
[361148230,1747306241632,-323.17949858,0.00017081,2]